[Event "*** Titled Tuesday Blitz"]
[Site "Chess.com"]
[Date "2020.01.07"]
[Round "3"]
[White "riconaipe"]
[Black "AntonSmirnov"]
[Result "0-1"]
[WhiteElo "2588"]
[BlackElo "2881"]
[TimeControl "180+2"]
[EndTime "13:38:50 PST"]
[Termination "AntonSmirnov won by resignation"]

1. d4 {[%clk 0:03:01.9]} 1... d5 {[%clk 0:02:57.8]} 2. c4 {[%clk 0:03:02.4]}
2... c6 {[%clk 0:02:59.1]} 3. Nf3 {[%clk 0:03:01.9]} 3... Nf6 {[%clk 0:03:00.3]}
4. Nc3 {[%clk 0:03:00.3]} 4... dxc4 {[%clk 0:03:01.3]} 5. a4 {[%clk 0:03:00.8]}
5... Bf5 {[%clk 0:03:02]} 6. e3 {[%clk 0:02:56.2]} 6... e6 {[%clk 0:03:03.2]} 7.
Bxc4 {[%clk 0:02:57.2]} 7... Bb4 {[%clk 0:03:04.2]} 8. O-O {[%clk 0:02:58.6]}
8... O-O {[%clk 0:03:05]} 9. Qe2 {[%clk 0:02:59.1]} 9... Bg6 {[%clk 0:03:04.5]}
10. Rd1 {[%clk 0:02:58.5]} 10... Nbd7 {[%clk 0:03:05.1]} 11. Ne5 {[%clk
0:02:52.7]} 11... Qa5 {[%clk 0:02:54]} 12. Nxg6 {[%clk 0:02:49]} 12... hxg6
{[%clk 0:02:55]} 13. Bd2 {[%clk 0:02:48.5]} 13... Rad8 {[%clk 0:02:55.3]} 14.
Na2 {[%clk 0:02:32.8]} 14... Bxd2 {[%clk 0:02:55.5]} 15. Qxd2 {[%clk 0:02:33.7]}
15... Qh5 {[%clk 0:02:51]} 16. Qe2 {[%clk 0:02:29.2]} 16... Qh4 {[%clk
0:02:49.1]} 17. Nc3 {[%clk 0:02:20.9]} 17... Nb6 {[%clk 0:02:49.6]} 18. Bb3
{[%clk 0:02:11.1]} 18... Nbd5 {[%clk 0:02:46]} 19. a5 {[%clk 0:02:03.9]} 19...
Nxc3 {[%clk 0:02:33.6]} 20. bxc3 {[%clk 0:02:05.8]} 20... Ne4 {[%clk 0:02:33.6]}
21. Rdc1 {[%clk 0:02:00.5]} 21... Rd7 {[%clk 0:02:33.1]} 22. Bc4 {[%clk
0:01:43.6]} 22... Rfd8 {[%clk 0:02:32.5]} 23. Bd3 {[%clk 0:01:29.2]} 23... Nf6
{[%clk 0:02:33.3]} 24. Rcb1 {[%clk 0:01:21.2]} 24... Ng4 {[%clk 0:02:33.2]} 25.
h3 {[%clk 0:01:19.4]} 25... Nf6 {[%clk 0:02:34.3]} 26. Rb3 {[%clk 0:01:16.9]}
26... g5 {[%clk 0:02:34.3]} 27. Qf3 {[%clk 0:00:49.3]} 27... g4 {[%clk
0:02:32.6]} 28. Qg3 {[%clk 0:00:50.4]} 28... Qxg3 {[%clk 0:02:21.5]} 29. fxg3
{[%clk 0:00:52.3]} 29... gxh3 {[%clk 0:02:23]} 30. gxh3 {[%clk 0:00:53.3]} 30...
Rc8 {[%clk 0:02:20.8]} 31. c4 {[%clk 0:00:38.3]} 31... c5 {[%clk 0:02:17.8]} 32.
d5 {[%clk 0:00:30.7]} 32... Rcc7 {[%clk 0:02:08.8]} 33. e4 {[%clk 0:00:29.7]}
33... exd5 {[%clk 0:02:04.8]} 34. exd5 {[%clk 0:00:29.8]} 34... Ne8 {[%clk
0:02:06]} 35. Re1 {[%clk 0:00:17.4]} 35... Nd6 {[%clk 0:02:06.6]} 36. Bf1 {[%clk
0:00:17.7]} 36... Re7 {[%clk 0:02:05.8]} 37. Rbe3 {[%clk 0:00:19]} 37... Kf8
{[%clk 0:02:06.4]} 38. Kf2 {[%clk 0:00:18]} 38... Rxe3 {[%clk 0:02:04.6]} 39.
Rxe3 {[%clk 0:00:19.9]} 39... Re7 {[%clk 0:02:06]} 40. g4 {[%clk 0:00:08.5]}
40... Rxe3 {[%clk 0:02:02]} 41. Kxe3 {[%clk 0:00:10.4]} 41... g5 {[%clk
0:02:03.3]} 42. Kd3 {[%clk 0:00:07.9]} 42... Ke7 {[%clk 0:02:04.2]} 43. Bg2
{[%clk 0:00:04.8]} 43... Kf6 {[%clk 0:02:05.3]} 44. Be4 {[%clk 0:00:04.3]} 44...
Ke5 {[%clk 0:02:06.4]} 45. Bh7 {[%clk 0:00:05.2]} 45... b6 {[%clk 0:02:07]} 46.
axb6 {[%clk 0:00:05.9]} 46... axb6 {[%clk 0:02:07.9]} 47. Bg8 {[%clk 0:00:07.3]}
47... f6 {[%clk 0:02:09]} 48. Be6 {[%clk 0:00:05.6]} 48... Kf4 {[%clk
0:02:10.2]} 49. Kc3 {[%clk 0:00:06.3]} 49... Kg3 {[%clk 0:02:10.8]} 50. Kb3
{[%clk 0:00:07.1]} 50... Kxh3 {[%clk 0:02:12.1]} 51. Ka4 {[%clk 0:00:07.8]}
51... Kg3 {[%clk 0:02:12.8]} 52. Kb3 {[%clk 0:00:08.6]} 52... Kf4 {[%clk
0:02:14.1]} 53. Kc3 {[%clk 0:00:09.6]} 53... Ke3 {[%clk 0:02:15.4]} 54. Bd7
{[%clk 0:00:08.6]} 54... Ne4+ {[%clk 0:02:16.1]} 55. Kb3 {[%clk 0:00:07.5]}
55... Kd4 {[%clk 0:02:17.4]} 56. Bf5 {[%clk 0:00:07.3]} 56... Nd6 {[%clk
0:02:17.5]} 57. Ka4 {[%clk 0:00:07]} 57... Nxf5 {[%clk 0:02:17.3]} 58. gxf5
{[%clk 0:00:06.7]} 58... Ke5 {[%clk 0:02:18.5]} 59. Kb5 {[%clk 0:00:07.9]} 59...
Kd6 {[%clk 0:02:19.7]} 60. Kxb6 {[%clk 0:00:08]} 60... g4 {[%clk 0:02:21.1]} 0-1

[Event "*** Titled Tuesday Blitz"]
[Site "Chess.com"]
[Date "2020.01.07"]
[Round "3"]
[White "NikolaMa2000"]
[Black "albi1999"]
[Result "0-1"]
[WhiteElo "2044"]
[BlackElo "2535"]
[TimeControl "180+2"]
[EndTime "13:39:02 PST"]
[Termination "albi1999 won by resignation"]

1. d4 {[%clk 0:03:01.9]} 1... Nf6 {[%clk 0:02:57.3]} 2. c4 {[%clk 0:03:02.1]}
2... e6 {[%clk 0:02:57.3]} 3. Nf3 {[%clk 0:03:02.5]} 3... d5 {[%clk 0:02:57.5]}
4. g3 {[%clk 0:03:02.2]} 4... Bb4+ {[%clk 0:02:51.1]} 5. Nbd2 {[%clk 0:03:02.3]}
5... dxc4 {[%clk 0:02:51.3]} 6. Qc2 {[%clk 0:03:01.5]} 6... b5 {[%clk
0:02:50.6]} 7. Bg2 {[%clk 0:02:59.7]} 7... Bb7 {[%clk 0:02:50.5]} 8. O-O {[%clk
0:02:57.8]} 8... Nbd7 {[%clk 0:02:44.3]} 9. a4 {[%clk 0:02:56.8]} 9... a6 {[%clk
0:02:43.1]} 10. e4 {[%clk 0:02:41.4]} 10... h6 {[%clk 0:02:34]} 11. Rd1 {[%clk
0:02:29.2]} 11... O-O {[%clk 0:02:27.6]} 12. e5 {[%clk 0:02:17.7]} 12... Nd5
{[%clk 0:02:26.3]} 13. Ne4 {[%clk 0:02:18.6]} 13... Be7 {[%clk 0:02:25.6]} 14.
h4 {[%clk 0:01:57]} 14... Nb4 {[%clk 0:02:25.4]} 15. Qe2 {[%clk 0:01:47.6]}
15... Nd3 {[%clk 0:02:21.1]} 16. Ne1 {[%clk 0:01:46.3]} 16... Nxc1 {[%clk
0:02:14.7]} 17. Raxc1 {[%clk 0:01:44]} 17... Qc8 {[%clk 0:02:15.2]} 18. Kh2
{[%clk 0:01:08.3]} 18... c5 {[%clk 0:02:10.7]} 19. Nd6 {[%clk 0:00:58.1]} 19...
Bxd6 {[%clk 0:02:10.7]} 20. exd6 {[%clk 0:00:58.6]} 20... Bxg2 {[%clk
0:02:07.8]} 21. Kxg2 {[%clk 0:00:59.1]} 21... Qc6+ {[%clk 0:02:07.8]} 22. f3
{[%clk 0:00:56.8]} 22... Qxd6 {[%clk 0:02:06.9]} 23. dxc5 {[%clk 0:00:56.8]}
23... Qc7 {[%clk 0:02:08]} 24. axb5 {[%clk 0:00:52.9]} 24... axb5 {[%clk
0:02:06.8]} 25. b4 {[%clk 0:00:53.9]} 25... cxb3 {[%clk 0:02:04.1]} 26. Qxb5
{[%clk 0:00:54.6]} 26... Ra2+ {[%clk 0:01:58.3]} 27. Kh3 {[%clk 0:00:48.3]}
27... Nf6 {[%clk 0:01:46]} 28. Qxb3 {[%clk 0:00:44.2]} 28... Rfa8 {[%clk
0:01:43.7]} 29. Rc2 {[%clk 0:00:41.5]} 29... R2a3 {[%clk 0:01:43.8]} 30. Qb6
{[%clk 0:00:38.5]} 30... Qc8 {[%clk 0:01:42.8]} 31. c6 {[%clk 0:00:33.7]} 31...
e5+ {[%clk 0:01:44.1]} 32. g4 {[%clk 0:00:29.1]} 32... e4 {[%clk 0:01:45.1]} 33.
c7 {[%clk 0:00:24.4]} 33... Qxg4+ {[%clk 0:01:44.4]} 34. Kh2 {[%clk 0:00:21.6]}
34... Qxh4+ {[%clk 0:01:44.7]} 35. Kg1 {[%clk 0:00:20.7]} 35... exf3 {[%clk
0:01:26.8]} 36. Rd8+ {[%clk 0:00:18.8]} 36... Kh7 {[%clk 0:01:27.5]} 37. Rxa8
{[%clk 0:00:10.9]} 37... Qxe1+ {[%clk 0:01:26.8]} 38. Kh2 {[%clk 0:00:08.3]}
38... Rxa8 {[%clk 0:01:11.1]} 39. c8=Q {[%clk 0:00:08.8]} 39... Rxc8 {[%clk
0:01:06.5]} 40. Rxc8 {[%clk 0:00:10.7]} 40... Qe2+ {[%clk 0:01:03.4]} 41. Kg3
{[%clk 0:00:04.6]} 41... Qg2+ {[%clk 0:00:56.5]} 42. Kf4 {[%clk 0:00:05.3]}
42... Nd5+ {[%clk 0:00:57.9]} 43. Ke5 {[%clk 0:00:03.2]} 43... Nxb6 {[%clk
0:00:58]} 0-1

[Event "*** Titled Tuesday Blitz"]
[Site "Chess.com"]
[Date "2020.01.07"]
[Round "3"]
[White "Faqade"]
[Black "platy3"]
[Result "0-1"]
[WhiteElo "2644"]
[BlackElo "2900"]
[TimeControl "180+2"]
[EndTime "13:39:04 PST"]
[Termination "platy3 won by resignation"]

1. Nf3 {[%clk 0:03:01.9]} 1... Nf6 {[%clk 0:02:58.3]} 2. g3 {[%clk 0:03:02.5]}
2... d5 {[%clk 0:02:58.2]} 3. Bg2 {[%clk 0:03:04.4]} 3... e6 {[%clk 0:02:59.8]}
4. O-O {[%clk 0:03:05.5]} 4... c5 {[%clk 0:03:01.4]} 5. d3 {[%clk 0:03:05.3]}
5... Nc6 {[%clk 0:03:02]} 6. Nc3 {[%clk 0:03:05.2]} 6... Be7 {[%clk 0:03:02.6]}
7. e4 {[%clk 0:03:05.1]} 7... O-O {[%clk 0:03:03.9]} 8. a4 {[%clk 0:03:01.8]}
8... d4 {[%clk 0:02:57.2]} 9. Ne2 {[%clk 0:02:53.2]} 9... b6 {[%clk 0:02:58.6]}
10. Nd2 {[%clk 0:02:52.6]} 10... Bb7 {[%clk 0:02:57.9]} 11. f4 {[%clk
0:02:50.1]} 11... Ng4 {[%clk 0:02:42.2]} 12. Nc4 {[%clk 0:02:49.9]} 12... Na5
{[%clk 0:02:43.3]} 13. h3 {[%clk 0:02:37.7]} 13... Nxc4 {[%clk 0:02:41.7]} 14.
hxg4 {[%clk 0:02:38.2]} 14... Na5 {[%clk 0:02:22.3]} 15. g5 {[%clk 0:02:06.5]}
15... c4 {[%clk 0:02:23.1]} 16. Bd2 {[%clk 0:02:05.8]} 16... Rc8 {[%clk
0:02:21.1]} 17. g4 {[%clk 0:01:38.6]} 17... e5 {[%clk 0:02:14.1]} 18. fxe5
{[%clk 0:01:30.9]} 18... Bxg5 {[%clk 0:02:14.7]} 19. Bxg5 {[%clk 0:01:26.1]}
19... Qxg5 {[%clk 0:02:14.6]} 20. Rf5 {[%clk 0:01:25]} 20... Qe3+ {[%clk
0:02:03.1]} 21. Kf1 {[%clk 0:01:25.3]} 21... cxd3 {[%clk 0:02:04.2]} 22. Qxd3
{[%clk 0:01:16.3]} 22... Nc4 {[%clk 0:01:57.6]} 23. Rf2 {[%clk 0:00:55.8]} 23...
Rfd8 {[%clk 0:01:23.6]} 24. b3 {[%clk 0:00:26.9]} 24... Nxe5 {[%clk 0:01:22.8]}
25. Qxe3 {[%clk 0:00:23.8]} 25... dxe3 {[%clk 0:01:24.7]} 26. Rf4 {[%clk
0:00:25.1]} 26... Rxc2 {[%clk 0:01:23.9]} 27. Ng3 {[%clk 0:00:24.8]} 27... Rdd2
{[%clk 0:01:20.8]} 28. Bh1 {[%clk 0:00:18.6]} 28... Rf2+ {[%clk 0:01:19.6]} 29.
Rxf2 {[%clk 0:00:18.9]} 29... Rxf2+ {[%clk 0:01:21.5]} 30. Kg1 {[%clk
0:00:19.3]} 30... g6 {[%clk 0:01:09.9]} 31. Re1 {[%clk 0:00:20.3]} 31... Nxg4
{[%clk 0:01:08.9]} 32. Rxe3 {[%clk 0:00:19.6]} 32... Nxe3 {[%clk 0:00:58.7]} 33.
Kxf2 {[%clk 0:00:20.9]} 33... Ng4+ {[%clk 0:01:00.6]} 34. Ke2 {[%clk 0:00:21.6]}
34... h5 {[%clk 0:01:00.4]} 35. Bf3 {[%clk 0:00:21.2]} 35... Ne5 {[%clk
0:01:01.3]} 36. Bg2 {[%clk 0:00:21.6]} 36... Kf8 {[%clk 0:01:02.5]} 37. Ke3
{[%clk 0:00:22]} 37... Ke7 {[%clk 0:01:03.9]} 38. Kf4 {[%clk 0:00:23.1]} 38...
Kf6 {[%clk 0:01:03.1]} 39. Ke3 {[%clk 0:00:21.5]} 39... Bc8 {[%clk 0:01:03.5]}
40. Bf1 {[%clk 0:00:22.1]} 40... Be6 {[%clk 0:01:03.5]} 41. Ne2 {[%clk
0:00:22.9]} 41... Bxb3 {[%clk 0:01:03.3]} 42. a5 {[%clk 0:00:24.8]} 42... bxa5
{[%clk 0:01:03.8]} 43. Nd4 {[%clk 0:00:23.5]} 43... a4 {[%clk 0:01:04.6]} 44.
Nb5 {[%clk 0:00:24.6]} 44... Bc4 {[%clk 0:01:03.8]} 45. Bxc4 {[%clk 0:00:22.1]}
45... Nxc4+ {[%clk 0:01:05.7]} 46. Kd4 {[%clk 0:00:23.8]} 46... a3 {[%clk
0:01:05.6]} 47. Nc3 {[%clk 0:00:25.1]} 47... h4 {[%clk 0:00:48.6]} 0-1

[Event "*** Titled Tuesday Blitz"]
[Site "Chess.com"]
[Date "2020.01.07"]
[Round "3"]
[White "gena217"]
[Black "Vuk2000"]
[Result "1-0"]
[WhiteElo "2947"]
[BlackElo "2671"]
[TimeControl "180+2"]
[EndTime "13:39:12 PST"]
[Termination "gena217 won by resignation"]

1. e4 {[%clk 0:03:01.9]} 1... e6 {[%clk 0:03:01.3]} 2. d4 {[%clk 0:03:01.8]}
2... d5 {[%clk 0:03:02.8]} 3. Nd2 {[%clk 0:03:02.7]} 3... Be7 {[%clk 0:03:02.6]}
4. Ngf3 {[%clk 0:03:03.4]} 4... Nf6 {[%clk 0:03:03]} 5. e5 {[%clk 0:03:04.3]}
5... Nfd7 {[%clk 0:03:04]} 6. Bd3 {[%clk 0:03:05]} 6... c5 {[%clk 0:03:04.6]} 7.
c3 {[%clk 0:03:06.1]} 7... b6 {[%clk 0:03:05.8]} 8. O-O {[%clk 0:03:03.4]} 8...
Ba6 {[%clk 0:03:06.5]} 9. Bxa6 {[%clk 0:03:04.8]} 9... Nxa6 {[%clk 0:03:08.4]}
10. Ne1 {[%clk 0:03:06.2]} 10... b5 {[%clk 0:03:03.5]} 11. Qg4 {[%clk
0:03:05.9]} 11... g6 {[%clk 0:02:56]} 12. Ndf3 {[%clk 0:03:02.8]} 12... b4
{[%clk 0:02:52.3]} 13. cxb4 {[%clk 0:02:46.3]} 13... Nxb4 {[%clk 0:02:46.3]} 14.
dxc5 {[%clk 0:02:46.7]} 14... Nc6 {[%clk 0:02:33.8]} 15. Nd3 {[%clk 0:02:41.1]}
15... Nxc5 {[%clk 0:02:23.3]} 16. Nxc5 {[%clk 0:02:42.1]} 16... Bxc5 {[%clk
0:02:25.1]} 17. Bh6 {[%clk 0:02:41.7]} 17... Bf8 {[%clk 0:02:07.4]} 18. Qf4
{[%clk 0:02:14.9]} 18... Rb8 {[%clk 0:01:52.2]} 19. Rac1 {[%clk 0:02:13.4]}
19... Qd7 {[%clk 0:01:46.2]} 20. Qf6 {[%clk 0:02:07.1]} 20... Rg8 {[%clk
0:01:36.4]} 21. Bxf8 {[%clk 0:02:07.7]} 21... Kxf8 {[%clk 0:01:32.5]} 22. Ng5
{[%clk 0:02:07.6]} 22... Rg7 {[%clk 0:01:30.3]} 23. b3 {[%clk 0:02:01.5]} 23...
Kg8 {[%clk 0:01:26.9]} 24. Rfd1 {[%clk 0:01:56.1]} 24... Ne7 {[%clk 0:01:06.9]}
25. Qf4 {[%clk 0:01:38.9]} 25... Qb7 {[%clk 0:00:52]} 26. Nf3 {[%clk 0:01:39.4]}
26... Nf5 {[%clk 0:00:37.9]} 27. h3 {[%clk 0:01:34]} 27... h6 {[%clk 0:00:37.2]}
28. Qa4 {[%clk 0:01:11.2]} 28... g5 {[%clk 0:00:36.9]} 29. Rc2 {[%clk
0:01:07.1]} 29... h5 {[%clk 0:00:25.8]} 30. Nd4 {[%clk 0:01:03.3]} 30... Nxd4
{[%clk 0:00:20.5]} 31. Qxd4 {[%clk 0:01:05.2]} 31... g4 {[%clk 0:00:17]} 32. h4
{[%clk 0:01:05]} 32... Qe7 {[%clk 0:00:14.3]} 33. g3 {[%clk 0:01:04.8]} 33...
Rb4 {[%clk 0:00:08.8]} 34. Rc8+ {[%clk 0:01:05.3]} 34... Kh7 {[%clk 0:00:09.9]}
35. Qd3+ {[%clk 0:01:04.9]} 35... Rg6 {[%clk 0:00:08.4]} 36. Rdc1 {[%clk
0:01:06.3]} 36... Rb7 {[%clk 0:00:07.4]} 37. Kg2 {[%clk 0:00:53.9]} 37... f6
{[%clk 0:00:08.7]} 38. Qd4 {[%clk 0:00:42.2]} 38... Qf7 {[%clk 0:00:06.6]} 39.
R1c6 {[%clk 0:00:40.2]} 39... fxe5 {[%clk 0:00:05.5]} 40. Qxe5 {[%clk
0:00:41.7]} 40... Rf6 {[%clk 0:00:07.3]} 41. Rc2 {[%clk 0:00:42.7]} 41... Rd7
{[%clk 0:00:06.1]} 42. R8c7 {[%clk 0:00:42.7]} 42... Kg6 {[%clk 0:00:07.5]} 43.
Qg5+ {[%clk 0:00:41.2]} 43... Kh7 {[%clk 0:00:07]} 44. Rxd7 {[%clk 0:00:42.8]}
1-0

[Event "*** Titled Tuesday Blitz"]
[Site "Chess.com"]
[Date "2020.01.07"]
[Round "3"]
[White "davigator"]
[Black "brendan174"]
[Result "1-0"]
[WhiteElo "2334"]
[BlackElo "2098"]
[TimeControl "180+2"]
[EndTime "13:39:13 PST"]
[Termination "davigator won by resignation"]

1. e4 {[%clk 0:03:01.9]} 1... e5 {[%clk 0:03:00.5]} 2. Nf3 {[%clk 0:03:02.3]}
2... Nc6 {[%clk 0:03:01.3]} 3. Bc4 {[%clk 0:03:02.5]} 3... Bc5 {[%clk
0:03:01.3]} 4. c3 {[%clk 0:03:02.1]} 4... Nf6 {[%clk 0:03:02.5]} 5. d3 {[%clk
0:03:02.9]} 5... a6 {[%clk 0:03:01]} 6. a4 {[%clk 0:03:03.1]} 6... O-O {[%clk
0:03:00.8]} 7. O-O {[%clk 0:03:03.3]} 7... Ba7 {[%clk 0:02:56.7]} 8. Bg5 {[%clk
0:03:01.9]} 8... h6 {[%clk 0:02:56.1]} 9. Bh4 {[%clk 0:03:02.4]} 9... d6 {[%clk
0:02:54.4]} 10. Re1 {[%clk 0:02:58.7]} 10... g5 {[%clk 0:02:43.4]} 11. Bg3
{[%clk 0:02:59.1]} 11... Ne7 {[%clk 0:02:44.9]} 12. d4 {[%clk 0:02:58.5]} 12...
Ng6 {[%clk 0:02:07.8]} 13. Nbd2 {[%clk 0:02:53.2]} 13... Re8 {[%clk 0:02:03.5]}
14. Qb3 {[%clk 0:02:51.2]} 14... Qe7 {[%clk 0:01:50.5]} 15. h3 {[%clk
0:02:39.8]} 15... Nf4 {[%clk 0:01:39.5]} 16. Bxf4 {[%clk 0:02:39.7]} 16... gxf4
{[%clk 0:01:25.7]} 17. dxe5 {[%clk 0:02:29.3]} 17... dxe5 {[%clk 0:01:26.6]} 18.
Nxe5 {[%clk 0:02:28.5]} 18... Qxe5 {[%clk 0:01:24.1]} 19. Bxf7+ {[%clk 0:02:29]}
19... Kg7 {[%clk 0:01:23.2]} 20. Nf3 {[%clk 0:02:28.4]} 20... Qc5 {[%clk
0:01:18.8]} 21. Bxe8 {[%clk 0:02:28.6]} 21... Qxf2+ {[%clk 0:01:17.1]} 22. Kh1
{[%clk 0:02:29.8]} 22... Nxe8 {[%clk 0:01:09.1]} 23. e5 {[%clk 0:02:27.1]} 23...
Bxh3 {[%clk 0:01:07.5]} 24. Rg1 {[%clk 0:02:19.2]} 24... Bg4 {[%clk 0:00:46.8]}
25. Qxb7 {[%clk 0:02:18]} 25... Rb8 {[%clk 0:00:34.1]} 26. Qc6 {[%clk
0:02:15.6]} 26... Qg3 {[%clk 0:00:30.7]} 27. Nh2 {[%clk 0:02:09.2]} 27... Bxg1
{[%clk 0:00:25.7]} 28. Rxg1 {[%clk 0:02:08.7]} 28... Bf5 {[%clk 0:00:18.3]} 29.
b4 {[%clk 0:02:06.2]} 29... Qg6 {[%clk 0:00:18.1]} 30. Qc5 {[%clk 0:02:03]}
30... Kh7 {[%clk 0:00:16.4]} 31. Rf1 {[%clk 0:01:59.7]} 31... Be4 {[%clk
0:00:16.3]} 32. Nf3 {[%clk 0:01:59.9]} 32... Bxf3 {[%clk 0:00:16.7]} 33. Rxf3
{[%clk 0:02:00.3]} 33... Qh5+ {[%clk 0:00:14.4]} 34. Kg1 {[%clk 0:02:01]} 34...
Qf7 {[%clk 0:00:10.5]} 35. Qd4 {[%clk 0:01:58.3]} 35... Ng7 {[%clk 0:00:10.5]}
36. Rxf4 {[%clk 0:01:58.7]} 36... Qg6 {[%clk 0:00:09.5]} 37. Qe4 {[%clk
0:01:59.4]} 37... Qxe4 {[%clk 0:00:09.8]} 38. Rxe4 {[%clk 0:02:00.6]} 38... Re8
{[%clk 0:00:10.9]} 39. Kf2 {[%clk 0:02:00.7]} 39... Kg6 {[%clk 0:00:11.6]} 40.
Ke3 {[%clk 0:02:01.5]} 40... Kf5 {[%clk 0:00:12.1]} 41. Rc4 {[%clk 0:02:00.9]}
41... Rxe5+ {[%clk 0:00:12.5]} 42. Kf3 {[%clk 0:02:02]} 42... Re7 {[%clk
0:00:13.2]} 43. Rc6 {[%clk 0:02:01.6]} 43... Re6 {[%clk 0:00:07.4]} 44. Rxc7
{[%clk 0:02:01.7]} 44... Ne8 {[%clk 0:00:08.5]} 45. Rc5+ {[%clk 0:02:00.9]}
45... Kf6 {[%clk 0:00:08]} 46. Kf4 {[%clk 0:02:01.8]} 46... Nd6 {[%clk
0:00:08.6]} 47. Rc6 {[%clk 0:02:01.2]} 47... Re4+ {[%clk 0:00:04.8]} 48. Kf3
{[%clk 0:02:00.8]} 48... Re6 {[%clk 0:00:05.4]} 49. Rxa6 {[%clk 0:02:00.1]}
49... Kg5 {[%clk 0:00:04.5]} 50. b5 {[%clk 0:02:00]} 50... Rf6+ {[%clk
0:00:05.7]} 51. Ke2 {[%clk 0:01:58.2]} 51... Kg4 {[%clk 0:00:05.4]} 52. c4
{[%clk 0:01:59]} 52... Re6+ {[%clk 0:00:03.7]} 53. Kf2 {[%clk 0:01:58.8]} 53...
Ne4+ {[%clk 0:00:03.7]} 54. Ke3 {[%clk 0:01:58.9]} 54... Rxa6 {[%clk 0:00:02.7]}
55. bxa6 {[%clk 0:01:59.1]} 55... Nd6 {[%clk 0:00:02.4]} 56. a7 {[%clk
0:01:59.5]} 56... Nxc4+ {[%clk 0:00:03.8]} 57. Kd4 {[%clk 0:01:59.9]} 57... Nb6
{[%clk 0:00:05.5]} 58. Kc5 {[%clk 0:02:00.9]} 58... Na8 {[%clk 0:00:06]} 59. Kc6
{[%clk 0:02:01.3]} 59... Kg3 {[%clk 0:00:07.4]} 60. Kb7 {[%clk 0:02:02.6]} 60...
Kxg2 {[%clk 0:00:07.3]} 61. Kxa8 {[%clk 0:02:04.5]} 61... h5 {[%clk 0:00:09.1]}
62. Kb8 {[%clk 0:02:04.6]} 62... h4 {[%clk 0:00:11]} 63. a8=Q+ {[%clk
0:02:05.2]} 63... Kg3 {[%clk 0:00:11.8]} 64. Qh1 {[%clk 0:02:05]} 64... h3
{[%clk 0:00:13.1]} 1-0

[Event "*** Titled Tuesday Blitz"]
[Site "Chess.com"]
[Date "2020.01.07"]
[Round "3"]
[White "bilelou"]
[Black "severomorskij"]
[Result "1-0"]
[WhiteElo "2538"]
[BlackElo "2866"]
[TimeControl "180+2"]
[EndTime "13:39:15 PST"]
[Termination "bilelou won on time"]

1. d4 {[%clk 0:03:01.9]} 1... Nf6 {[%clk 0:02:59.9]} 2. c4 {[%clk 0:03:01.2]}
2... e6 {[%clk 0:03:01]} 3. Nf3 {[%clk 0:03:01.3]} 3... Bb4+ {[%clk 0:02:59.3]}
4. Nbd2 {[%clk 0:03:01.5]} 4... O-O {[%clk 0:02:59.3]} 5. a3 {[%clk 0:02:59.7]}
5... Be7 {[%clk 0:03:00.1]} 6. e4 {[%clk 0:02:59.9]} 6... d6 {[%clk 0:02:57.1]}
7. Be2 {[%clk 0:03:00.7]} 7... Nfd7 {[%clk 0:02:53.1]} 8. O-O {[%clk 0:03:02.6]}
8... e5 {[%clk 0:02:54.3]} 9. d5 {[%clk 0:02:58.9]} 9... a5 {[%clk 0:02:54.5]}
10. b3 {[%clk 0:02:59.4]} 10... Nc5 {[%clk 0:02:51.9]} 11. Bb2 {[%clk
0:02:58.4]} 11... f5 {[%clk 0:02:52.4]} 12. exf5 {[%clk 0:02:59.3]} 12... Bxf5
{[%clk 0:02:52.7]} 13. Ne1 {[%clk 0:03:00]} 13... Bg5 {[%clk 0:02:50.2]} 14.
Ndf3 {[%clk 0:02:57]} 14... Bh6 {[%clk 0:02:47.7]} 15. b4 {[%clk 0:02:57.8]}
15... Ne4 {[%clk 0:02:40.8]} 16. c5 {[%clk 0:02:52.3]} 16... axb4 {[%clk
0:02:32.7]} 17. axb4 {[%clk 0:02:50.3]} 17... Rxa1 {[%clk 0:02:33]} 18. Qxa1
{[%clk 0:02:50.9]} 18... Nd7 {[%clk 0:02:31.9]} 19. Nd3 {[%clk 0:02:40.8]} 19...
Nef6 {[%clk 0:02:22.8]} 20. Nc1 {[%clk 0:02:22.7]} 20... Kh8 {[%clk 0:02:15.2]}
21. Qa2 {[%clk 0:02:15.3]} 21... Nh5 {[%clk 0:02:07.3]} 22. g3 {[%clk
0:02:09.4]} 22... Bh3 {[%clk 0:01:56.1]} 23. Rd1 {[%clk 0:02:02.2]} 23... Qf6
{[%clk 0:01:55]} 24. Nd3 {[%clk 0:01:46.4]} 24... Qf7 {[%clk 0:01:53.9]} 25. Nd2
{[%clk 0:01:44.6]} 25... Nf4 {[%clk 0:01:35.3]} 26. Nxf4 {[%clk 0:01:43.7]}
26... exf4 {[%clk 0:01:28.9]} 27. Ne4 {[%clk 0:01:43.9]} 27... fxg3 {[%clk
0:01:19]} 28. hxg3 {[%clk 0:01:44.2]} 28... Bf5 {[%clk 0:01:13.5]} 29. Qc4
{[%clk 0:01:44.3]} 29... Bxe4 {[%clk 0:01:11]} 30. Qxe4 {[%clk 0:01:44.8]} 30...
Qxf2+ {[%clk 0:01:11.8]} 31. Kh1 {[%clk 0:01:46.3]} 31... Qxg3 {[%clk
0:01:06.6]} 32. Qg4 {[%clk 0:01:47]} 32... Qxg4 {[%clk 0:00:44.1]} 33. Bxg4
{[%clk 0:01:48.9]} 33... Nf6 {[%clk 0:00:38.5]} 34. Bf3 {[%clk 0:01:40.2]} 34...
dxc5 {[%clk 0:00:31]} 35. bxc5 {[%clk 0:01:36]} 35... Nd7 {[%clk 0:00:31.9]} 36.
c6 {[%clk 0:01:36.8]} 36... bxc6 {[%clk 0:00:24.8]} 37. dxc6 {[%clk 0:01:37.6]}
37... Nf6 {[%clk 0:00:22.5]} 38. Be5 {[%clk 0:01:29.7]} 38... Ne8 {[%clk
0:00:15.4]} 39. Rd8 {[%clk 0:01:17]} 39... Bg5 {[%clk 0:00:08.3]} 40. Rc8 {[%clk
0:01:16]} 40... Be7 {[%clk 0:00:08.9]} 41. Bh5 {[%clk 0:00:47.2]} 41... Bd6
{[%clk 0:00:09.3]} 42. Bxd6 {[%clk 0:00:41]} 42... cxd6 {[%clk 0:00:06.6]} 43.
Rxe8 {[%clk 0:00:41.1]} 43... Rxe8 {[%clk 0:00:06.5]} 44. Bxe8 {[%clk
0:00:42.7]} 1-0